Cogmind - Beta 13 @@@ ROGUE MODE // 2024.04.07 @ 09:24:39 Player: H3-RMN Result: Destroyed by G-47 Trooper with Particle Gun Performance ------------- Evolutions (3) 1500 Regions Visited (8) 1600 Robots Destroyed (180) 900 Value Destroyed (6595) 6595 Prototype IDs (31) 620 Alien Tech Used (0) 0 Bonus (2833) 2833 TOTAL SCORE: 14048 Bonus ------- High Alert Combat Kills 1654 Follower Combat Kills 201 Entered Garrisons 200 Used RIF Installer 1000 Friendly Fire -222 Cogmind --------- Core Integrity 0/700 Matter 300/300 Energy 289/290 System Corruption 25% Temperature Cool (79) Movement Flying (32) Location -7/Factory Parts ------- > --- POWER (1) -------- Improved Deuterium Engine > --- PROPULSION (3) --- Cooled Nuclear Pulse Thruster Cooled Nuclear Pulse Thruster > --- UTILITY (7) ------ Improved Signal Interpreter Transport Network Coupler Transmission Jammer Core Shielding Hacking Suite Relay Coupler [NC] (11) > --- WEAPON (2) ------- (None) > --- INVENTORY (5) ---- Improved Utility Shielding Improved Utility Shielding Improved Light Armor Plating Trap Extractor (2/4 Shock) Improved Datajack Peak State ------------ > --- POWER ------------ Micro Nuclear Core > --- PROPULSION ------- Improved Titanium Leg Cargo Legs > --- UTILITY ---------- Experimental Heat Sink Medium Storage Unit Improved Signal Interpreter Transport Network Coupler Armor Integrity Analyzer Transmission Jammer System Shield Relay Coupler [NC] Recalibrator > --- WEAPON ----------- Cooled Pulse Rifle Light Antimatter Cannon > --- INVENTORY -------- Improved Sensor Array Improved Light Armor Plating Authchip [Weapon] Trap Extractor Cooled Pulse Rifle Cooled Pulse Rifle Cooled Pulse Rifle Mini Smartbomb Launcher Improved Datajack Remote Datajack [Rating: 69] Favorites ----------- Power Improved Deuterium Engine Engine Improved Deuterium Engine Power Core Micro Nuclear Core Propulsion Spiked Treads Treads Spiked Treads Leg Cargo Legs Wheel Wheel Hover Unit Aerolev Unit Flight Unit Cooled Nuclear Pulse Thruster Utility Improved Signal Interpreter Device Improved Sensor Array Storage Large Storage Unit Processor Improved Signal Interpreter Hackware Relay Coupler [NC] Protection Core Shielding Weapon Advanced Beam Rifle Energy Gun Advanced Beam Rifle Energy Cannon Advanced Beam Cannon Ballistic Gun Barrage Gun Ballistic Cannon Light Antimatter Cannon Launcher Mini Smartbomb Launcher Special Weapon Remote Datajack Slashing Weapon Makeshift Sword Special Melee Weapon Improved Datajack Build | -11 -10 -10 -10 -8 -8 -7 -7 -7 ------- Run | Yrd Mat Min Sub Mat Gar Fac Was Fac Slots Evolved 6 | . . . . 4 . 2 . . Power . | . . . . . . . . . Propulsion 1 | . . . . 1 . . . . Utility 5 | . . . . 3 . 2 . . Weapon . | . . . . . . . . . Parts Attached 260 | 7 1 . 21 72 29 81 3 46 Power 16 | 1 . . 2 1 2 6 . 4 Engine 12 | 1 . . 1 1 2 3 . 4 Core 4 | . . . 1 . . 3 . . Reactor . | . . . . . . . . . Propulsion 52 | 2 . . 7 16 5 12 1 9 Treads 16 | 1 . . 3 7 1 3 . 1 Leg 4 | . . . . . . 4 . . Wheel 25 | 1 . . 4 8 4 3 1 4 Hover 1 | . . . . 1 . . . . Flight 6 | . . . . . . 2 . 4 Utility 130 | 2 1 . 4 40 11 45 2 25 Device 60 | 1 . . 3 18 5 22 . 11 Storage 11 | 1 1 . 1 2 . 5 . 1 Processor 5 | . . . . 3 . 2 . . Hackware 4 | . . . . . . 2 1 1 Protection 50 | . . . . 17 6 14 1 12 Artifact . | . . . . . . . . . Weapon 62 | 2 . . 8 15 11 18 . 8 Energy Gun 13 | 1 . . 1 4 . 6 . 1 Energy Cannon 9 | . . . 2 3 3 1 . . Ballistic Gun 21 | 1 . . 5 6 5 1 . 3 Ballistic Cannon 4 | . . . . . . 4 . . Launcher 5 | . . . . . 2 3 . . Special Weapon 3 | . . . . . . 2 . 1 Impact Weapon . | . . . . . . . . . Slashing Weapon 2 | . . . . . . 1 . 1 Piercing Weapon . | . . . . . . . . . Special Melee Weapon 5 | . . . . 2 1 . . 2 Unidentified Prototypes 13 | . . . 1 4 . 7 . 1 Corrupted Parts 1 | . . . . . 1 . . . System Corruption 7 | . . . . . 7 . . . Parts Lost 40 | . . . 5 9 7 9 . 10 Power 8 | . . . 1 1 2 2 . 2 Propulsion 13 | . . . 2 4 3 1 . 3 Utility 15 | . . . 1 4 1 6 . 3 Weapon 4 | . . . 1 . 1 . . 2 Highest Loss Streak 4 | . . . 3 4 2 3 . 2 To Critical Strikes . | . . . . . . . . . Average Slot Usage (%) 90 | . 100 100 97 91 87 83 78 86 Engine 7 | . 14 14 7 8 6 3 . 3 Core 1 | . . . 6 . . 2 7 3 Treads 12 | . 14 14 14 16 14 4 . 1 Leg 1 | . . . . . . 4 7 2 Wheel 10 | . 14 14 14 10 12 6 7 5 Device 8 | . 14 14 13 7 2 9 . 14 Storage 9 | . 14 14 12 9 9 6 8 5 Processor 12 | . . . . 12 18 17 21 16 Hackware 1 | . . . . . . 6 5 8 Protection 6 | . . . . 9 6 5 7 4 Energy Gun 5 | . 14 14 1 8 . 3 7 5 Energy Cannon 4 | . . . 11 2 8 1 . . Ballistic Gun 6 | . 14 14 14 5 9 2 . 4 Naked Turns . | . . . . . . . . . Heaviest Build 240 | 15 30 30 40 236 226 240 238 228 Greatest Support 75 | 20 10 10 20 26 30 75 20 55 Greatest Overweight (x) 11 | 1 2 2 3 11 11 11 11 11 Average Overweight (x) 3 | . 1 2 2 3 9 3 11 . Largest Inventory Capacity 35 | 8 15 15 15 35 35 35 35 35 Average Capacity 19 | 7 10 15 13 16 35 23 35 19 Most Carried 35 | 8 8 15 15 35 35 35 35 35 Average Carried 17 | 3 7 13 13 13 33 22 34 17 Final Capacity 35 | 8 15 15 15 35 35 35 35 5 Final Carried 35 | 8 8 15 15 35 34 35 34 5 Class Distribution -------------------- 32% | Scavenger-Mutant 21% | Hauler-Mutant 19% | Derelict-Mutant 12% | Mutant 4% | Scavenger-Skirmisher 4% | Hauler-Skirmisher Dominant Class ---------------- Mutant | -10/Materials Mutant | -10/Mines Mutant | -10/Subcaves Scavenger-Mutant | -8/Materials Hauler-Mutant | -8/Garrison Hauler-Mutant | -7/Factory Hauler-Mutant | -7/Waste Scavenger-Mutant | -7/Factory Resources | -11 -10 -10 -10 -8 -8 -7 -7 -7 ----------- Run | Yrd Mat Min Sub Mat Gar Fac Was Fac Matter Collected 9130 | 276 10 42 742 3991 869 1991 . 1209 Remotely 1269 | 65 10 42 115 800 . 175 . 62 Salvage Created 7626 | 112 . 100 425 2753 1264 1857 . 1115 Parts 391 | 6 . 9 32 130 76 91 . 47 Haulers Intercepted 11 | . . . . 6 . 5 . . Recyclers Shooed 5 | . . . . . . . . 5 Parts Field Recycled . | . . . . . . . . . Retrieved Matter . | . . . . . . . . . Parts Self-Destructed 13 | . . . 13 . . . . . Prevented . | . . . . . . . . . Kills | -11 -10 -10 -10 -8 -8 -7 -7 -7 ------- Run | Yrd Mat Min Sub Mat Gar Fac Was Fac Combat Hostiles Destroyed 134 | . . 6 10 37 30 41 . 10 Melee 3 | . . . . . . 2 . 1 Guns 69 | . . 6 9 30 8 9 . 7 Cannons 43 | . . . 1 6 10 26 . . AOE 17 | . . . . 1 12 4 . . Classes Destroyed 20 | 2 . 1 3 8 2 3 . 1 Worker 5 | . . . . 1 . 2 . 2 Builder 3 | . . . . 2 . 1 . . Tunneler 2 | 1 . . . . . 1 . . Hauler 11 | . . . . 6 . 5 . . Recycler 13 | 1 . . . 4 . 3 . 5 Mechanic 1 | . . . . . . 1 . . Operator 1 | . . . . . . . . 1 Turret 1 | . . . 1 . . . . . Watcher 8 | . . . . 3 . 2 . 3 Swarmer 17 | . . 6 4 . 7 . . . Grunt 59 | . . . . 23 11 22 . 3 Brawler 4 | . . . . . 1 3 . . Duelist 6 | . . . . 1 1 3 . 1 Protector 2 | . . . . . . 2 . . Sentry 17 | . . . . 6 8 . . 3 Specialist 8 | . . . . 7 . 1 . . Hunter 4 | . . . . . . 3 . 1 Programmer 11 | . . . . . 2 7 . 2 Cobbler 2 | . . . 2 . . . . . Subdweller 7 | . . . 6 1 . . . . Best Kill Streak 14 | 2 . 3 4 4 14 8 . 3 Combat Bots Only 14 | . . 3 4 4 14 8 . 3 Max Kills in Single Turn 5 | 1 . 1 2 2 5 3 . 1 Gunslinging 1 | . . . 1 . . . . . Exploded 5 | . . . . 1 5 1 . . Melee 1 | . . . . . . 1 . 1 Uniques/NPCs Destroyed . | . . . . . . . . . Combat | -11 -10 -10 -10 -8 -8 -7 -7 -7 -------- Run | Yrd Mat Min Sub Mat Gar Fac Was Fac Hostile Shots Fired 826 | . . 30 65 174 136 197 . 224 Missed 236 | . . 3 17 53 27 61 . 75 Damage Taken 9066 | . . 216 807 2087 1868 2301 . 1787 Core 1321 | . . 36 149 181 254 344 . 357 Absorbed by Shields . | . . . . . . . . . Redirected to Shielding 181 | . . . . 33 . 83 . 65 Ignored by Resistances 6 | . . . . 6 . . . . Regen/Repaired (Parts) 334 | . . . . 44 . 290 . . Core Remaining (%) 48 | 100 . . 26 . 20 . . . Volleys Fired 624 | 2 . 14 88 158 117 139 7 99 Largest 2 | 2 . 2 2 2 2 2 1 2 Hottest 129 | 70 . 70 110 129 93 93 5 60 Shots Fired 1056 | 4 . 28 136 300 179 250 7 152 Gun 722 | 4 . 28 88 257 84 112 . 149 Cannon 311 | . . . 48 43 90 130 . . Launcher 11 | . . . . . 5 6 . . Special 12 | . . . . . . 2 7 3 Kinetic 533 | 2 . 14 69 157 85 129 . 77 Thermal 474 | 2 . 14 48 143 94 113 . 60 Explosive 6 | . . . . . . 6 . . Electromagnetic 31 | . . . 19 . . . . 12 Robot Hit Streak 22 | 3 . 5 15 15 15 15 16 22 Robot Miss Streak 6 | . . 6 4 4 3 4 . 4 Penetration Max . | . . . . . . . . . Secondary Targets 4 | . . 1 1 2 . . . . Max Gunslinging Chain 1 | . . 1 1 1 . . . . Shots Hit Robots 696 | 3 . 12 70 204 100 182 7 118 Core Hits 303 | 3 . 6 27 83 53 90 . 41 Critical Kills 1 | . . . . 1 . . . . Critical Parts Destroyed 1 | . . . . 1 . . . . Critical Strikes 23 | . . 1 . 10 . 8 . 4 Burn 15 | . . 1 . 8 . 3 . 3 Destroy 2 | . . . . 2 . . . . Blast 4 | . . . . . . 4 . . Sever 2 | . . . . . . 1 . 1 Melee Attacks 21 | . . . . . . 11 . 10 Impact . | . . . . . . . . . Slashing 15 | . . . . . . 11 . 4 Piercing . | . . . . . . . . . Sneak Attacks 7 | . . . . . . 3 . 4 Combat Hostiles 1 | . . . . . . . . 1 Follow-up Attacks . | . . . . . . . . . Damage Inflicted 17073 | 37 . 164 1099 4252 2619 6823 . 2079 Guns 9039 | 37 . 164 962 3297 1029 1591 . 1959 Cannons 5214 | . . . 137 955 953 3169 . . Explosions 2376 | . . . . . 637 1739 . . Melee 444 | . . . . . . 324 . 120 Ramming . | . . . . . . . . . Kinetic 8038 | 12 . 39 680 1894 1610 2929 . 874 Thermal 6402 | 25 . 125 137 2358 1009 1831 . 917 Explosive 1646 | . . . . . . 1646 . . Electromagnetic 543 | . . . 282 . . 93 . 168 Impact . | . . . . . . . . . Slashing 444 | . . . . . . 324 . 120 Piercing . | . . . . . . . . . Highest Corruption 25 | . . . . . 7 7 24 25 Average Corruption 12 | . . . . . 3 3 18 24 Corruption Purged 15 | . . . . . 9 6 . . Corruption Blocked . | . . . . . . . . . Effects 146 | . . . . . 9 24 10 103 Message Errors 31 | . . . . . 3 5 3 20 Matter Fused 34 | . . . . . 1 10 1 22 Heat Flow Errors 10 | . . . . . . . . 10 Energy Discharges 12 | . . . . . 1 2 . 9 Parts Rejected 3 | . . . . . . . 2 1 Parts Fused 1 | . . . . . 1 . . . Data Loss (minor) 22 | . . . . . 2 5 1 14 Data Loss (major) 5 | . . . . . . . 1 4 Misfires 5 | . . . . . . 1 . 4 Alerts 3 | . . . . . 1 . . 2 Misdirections 7 | . . . . . . . 2 5 Weapon Failures 13 | . . . . . . 1 . 12 Overload Shots 3 | . . . . . . 1 . 2 Effects 1 | . . . . . . . . 1 Energy Bleed 1 | . . . . . . . . 1 Overflow Damage 453 | . . . 28 60 45 320 . . Projectiles 313 | . . . 28 60 45 180 . . Explosions 27 | . . . . . . 27 . . Melee 113 | . . . . . . 113 . . Knockbacks 21 | . . . . . . 21 . . Impact . | . . . . . . . . . Kinetic 20 | . . . . . . 20 . . Secondary 1 | . . . . . . 1 . . Self-Inflicted Damage 56 | . . . . . 56 . . . Shots 2 | . . . . . 2 . . . Rammed . | . . . . . . . . . Targets Rammed . | . . . . . . . . . Kicked . | . . . . . . . . . Crushed . | . . . . . . . . . Highest Temperature 423 | 9 . 63 58 423 387 252 . 265 Average Temperature 74 | 6 . 24 10 78 104 64 . 67 Received Heat Transfer 2757 | . . . 156 738 639 729 . 495 Effects 8 | . . . . 4 1 3 . . Energy Bleed 3 | . . . . 1 1 1 . . Interference 4 | . . . . 2 . 2 . . Matter Decay 1 | . . . . 1 . . . . Siege Activations . | . . . . . . . . . Robots Corrupted . | . . . . . . . . . Combat Hostiles . | . . . . . . . . . Parts Fried 2 | . . . . . . . . 2 Impact Corruptions . | . . . . . . . . . Robots Melted 2 | . . . . . . . . 2 Combat Hostiles 2 | . . . . . . . . 2 Parts Melted 17 | . . . . 6 1 4 . 6 Heat Transferred 12526 | 74 . 444 185 4699 1776 3387 . 1961 Parts Sabotaged . | . . . . . . . . . Parts Stolen . | . . . . . . . . . Parts Stripped . | . . . . . . . . . Power Chain Reactions . | . . . . . . . . . Alert | -11 -10 -10 -10 -8 -8 -7 -7 -7 ------- Run | Yrd Mat Min Sub Mat Gar Fac Was Fac Peak Influence 1717 | 10 6 171 . 533 1717 1395 503 451 Initial 900 | . 6 1 . . 346 900 488 352 Average 479 | 4 6 82 . 270 1030 855 494 287 Maximum Alert Level 5 | . . . . 2 5 4 2 2 Low Security (%) 25 | 100 100 100 . 39 . . . 8 Level 1 33 | . . . . 46 4 . . 86 Level 2 17 | . . . . 14 12 35 100 4 Level 3 12 | . . . . . 36 39 . . Level 4 9 | . . . . . 37 24 . . Level 5 1 | . . . . . 8 . . . High Security . | . . . . . . . . . Max Security . | . . . . . . . . . Squads Dispatched 32 | . 1 1 . 11 . 13 . 6 Investigation 11 | . 1 1 . 3 . 3 . 3 Extermination 7 | . . . . . . 5 . 2 Reinforcement 7 | . . . . 7 . . . . Assault 6 | . . . . 1 . 5 . . Garrison 1 | . . . . . . . . 1 Intercept . | . . . . . . . . . Searches Triggered . | . . . . . . . . . Construction Impeded . | . . . . . . . . . Haulers Reinforced . | . . . . . . . . . Active Scanning Responses . | . . . . . . . . . Cargo Convoy Interrupts 1 | . . . . . . 1 . . Stealth | -11 -10 -10 -10 -8 -8 -7 -7 -7 --------- Run | Yrd Mat Min Sub Mat Gar Fac Was Fac Distress Signals 11 | . . . . 7 . 3 . 1 Communications Jammed 34 | . . . . . . 34 . . Distress Signals 33 | . . . . . . 33 . . Times Spotted 226 | . . 7 23 65 27 66 6 32 Peak Tracking Total 11 | . . 3 5 7 10 9 3 11 Tactical Retreats 17 | . . 1 2 7 . 2 . 5 Traps | -11 -10 -10 -10 -8 -8 -7 -7 -7 ------- Run | Yrd Mat Min Sub Mat Gar Fac Was Fac Traps Triggered 10 | . . . 1 . 4 3 . 2 Indirectly . | . . . . . . . . . Trap Hack Attempts 154 | . . . . 66 13 . . 75 Triggered . | . . . . . . . . . Disarmed 4 | . . . . 3 1 . . . Reprogrammed 15 | . . . . 9 . . . 6 Reused 8 | . . . . 3 . 5 . . Traps Extracted 7 | . . . . . . . . 7 Installed 11 | . . . . . 1 5 . 5 Triggered 9 | . . . . 3 . 6 . . Most Traps Carried 6 | . . . 1 3 5 5 . 6 Machines | -11 -10 -10 -10 -8 -8 -7 -7 -7 ---------- Run | Yrd Mat Min Sub Mat Gar Fac Was Fac Machines Disabled 13 | . . . 3 2 4 4 . . Max in Single Turn 3 | . . . 1 1 1 3 . . Garrison Relay 1 | . . . . . 1 . . . Machines Repaired . | . . . . . . . . . Machines Dismantled . | . . . . . . . . . Machines Sabotaged . | . . . . . . . . . Overloaded Fab Kills . | . . . . . . . . . Hacking | -11 -10 -10 -10 -8 -8 -7 -7 -7 --------- Run | Yrd Mat Min Sub Mat Gar Fac Was Fac Machines Accessed 39 | . 1 1 1 17 3 9 . 7 Terminals 21 | . 1 . . 10 3 1 . 6 Fabricators 2 | . . . . . . 2 . . Repair Stations 5 | . . . . 2 . 3 . . Recycling Units 4 | . . . . 2 . 1 . 1 Scanalyzers 3 | . . . . 2 . 1 . . Garrison Access 2 | . . . . 1 . 1 . . Total Hacks 105 | . 4 1 1 52 8 26 . 13 Successful 58 | . 1 1 1 33 2 16 . 4 Failed 47 | . 3 . . 19 6 10 . 9 Catastrophic 7 | . . . . 1 1 2 . 3 Database Lockouts . | . . . . . . . . . Manual 43 | . 4 . . 23 1 8 . 7 Terminals 56 | . 4 . . 31 8 3 . 10 Fabricators 5 | . . . . . . 5 . . Repair Stations 16 | . . . . 5 . 11 . . Recycling Units 13 | . . . . 8 . 2 . 3 Scanalyzers 8 | . . . . 5 . 3 . . Garrison Access 5 | . . . . 3 . 2 . . Terminal Hacks 14 | . 1 1 1 8 2 . . 1 Robot Analysis 1 | . 1 . . . . . . . Prototype ID Bank 2 | . . . . 2 . . . . Open Door 1 | . . 1 . . . . . . Branch Access Points 1 | . . . . . . . . 1 Emergency Access Points 1 | . . . . . 1 . . . Machine Index 1 | . . . . 1 . . . . Terminal Index 1 | . . . . 1 . . . . Unreport Threat 1 | . . . . 1 . . . . Locate Traps 3 | . . . . 3 . . . . Patrol Navigation 1 | . . . . . 1 . . . Derelict Proto ID Bank 1 | . . . 1 . . . . . Fabricator Hacks 2 | . . . . . . 2 . . Load Schematic 2 | . . . . . . 2 . . Repair Station Hacks 10 | . . . . 3 . 7 . . Scan Component 6 | . . . . 2 . 4 . . Repair 4 | . . . . 1 . 3 . . Recycling Unit Hacks 4 | . . . . 4 . . . . Process 1 | . . . . 1 . . . . Report Inventory 1 | . . . . 1 . . . . Retrieve Matter 1 | . . . . 1 . . . . Retrieve Components 1 | . . . . 1 . . . . Scanalyzer 6 | . . . . 4 . 2 . . Insert Component 3 | . . . . 2 . 1 . . Analyze 3 | . . . . 2 . 1 . . Garrison Access Hacks 2 | . . . . 1 . 1 . . Unlock Access 2 | . . . . 1 . 1 . . Unauthorized Hacks 20 | . . . . 13 . 4 . 3 Terminals 13 | . . . . 11 . 1 . 1 Track 4 | . . . . 4 . . . . Assimilate 1 | . . . . . . 1 . . Botnet 7 | . . . . 6 . . . 1 Operators 1 | . . . . 1 . . . . Fabricators 2 | . . . . . . 2 . . Recompile 2 | . . . . . . 2 . . Repair Stations . | . . . . . . . . . Recycling Units 4 | . . . . 1 . 1 . 2 Reject 1 | . . . . . . . . 1 Mask 3 | . . . . 1 . 1 . 1 Scanalyzers . | . . . . . . . . . Garrison Access 1 | . . . . 1 . . . . Reprogram 1 | . . . . 1 . . . . Data Cores Recovered 1 | . . . . . . . . 1 Used . | . . . . . . . . . Hacking Detections 31 | . 1 . . 15 2 7 . 6 Full Trace Events 7 | . 1 . . 2 . 1 . 3 Feedback Events 1 | . . . . . . . . 1 Corruption 1 | . . . . . . . . 1 Feedback Blocked . | . . . . . . . . . Robot Schematics Acquired . | . . . . . . . . . Robots Built . | . . . . . . . . . Authchips . | . . . . . . . . . Time . | . . . . . . . . . Total Robot Build Rating . | . . . . . . . . . Part Schematics Acquired 3 | . . . . 2 . 1 . . Parts Built . | . . . . . . . . . Authchips . | . . . . . . . . . Time . | . . . . . . . . . Total Part Build Rating . | . . . . . . . . . Parts Repaired 4 | . . . . 1 . 3 . . Time 134 | . . . . 26 . 108 . . Parts Recycled . | . . . . . . . . . Recycled Matter 272 | . . . . 272 . . . . Retrieved Matter . | . . . . . . . . . Retrieved Components 10 | . . . . 10 . . . . Parts Scanalyzed 3 | . . . . 2 . 1 . . Part Schematics Acquired 3 | . . . . 2 . 1 . . Parts Damaged 1 | . . . . . . 1 . . Bothacking | -11 -10 -10 -10 -8 -8 -7 -7 -7 ------------ Run | Yrd Mat Min Sub Mat Gar Fac Was Fac Used RIF Installer 2 | . . . . . 2 . . . Command Fork 1 | . . . . . 1 . . . Robots Hacked 12 | . . . . . . 1 6 5 Non-combat 5 | . . . . . . 1 . 4 Combat 7 | . . . . . . . 6 1 Robot Hacks Applied 13 | . . . . . . 1 7 5 parse_system 2 | . . . . . . . 1 1 no_distress 1 | . . . . . . . . 1 find_chute 1 | . . . . . . 1 . . map_earth 1 | . . . . . . . . 1 find_recycling 2 | . . . . . . . . 2 ignore_targets 6 | . . . . . . . 6 . Relay Couplers Released 5 | . . . . . 5 . . . Machine Destruction 5 | . . . . . 5 . . . Attached 2 | . . . . . . 1 1 . Fabnet Peak Effective % . | . . . . . . . . . Robots Rewired 3 | . . . . . 3 . . . Allies Hacked . | . . . . . . . . . Hacks Repelled . | . . . . . . . . . Allies | -11 -10 -10 -10 -8 -8 -7 -7 -7 -------- Run | Yrd Mat Min Sub Mat Gar Fac Was Fac Total Allies 13 | . . . 7 2 3 1 . . Largest Group 4 | . . . 4 3 3 1 . . Highest-Rated Group 76 | . . . 76 57 15 10 . . Highest-Rated Ally 19 | . . . 19 19 5 10 . . Total Orders . | . . . . . . . . . Ally Attacks 109 | . . . 28 70 11 . . . Total Damage 1338 | . . . 366 911 61 . . . Kills 7 | . . . 2 5 . . . . Allies Corrupted 1 | . . . . . . 1 . . Allies Melted . | . . . . . . . . . Intel | -11 -10 -10 -10 -8 -8 -7 -7 -7 ------- Run | Yrd Mat Min Sub Mat Gar Fac Was Fac Robot Analysis Total 1 | . 1 . . . . . . . Derelict Logs Recovered 3 | . . 1 2 . . . . . Drone Launches . | . . . . . . . . . Drone Recoveries . | . . . . . . . . . Exploration | -11 -10 -10 -10 -8 -8 -7 -7 -7 ------------- Run | Yrd Mat Min Sub Mat Gar Fac Was Fac Turns Passed 25493 | 71 68 519 3810 11992 2624 4452 181 1776 Spaces Moved 11581 | 50 64 411 2073 5134 700 1937 75 1137 Core 386 | 2 . . . . . 384 . . Treads 2 | 1 . . . . . 1 . . Legs 659 | . . . . . . 580 . 79 Wheels 9736 | 47 64 411 2073 5134 700 819 75 413 Hover . | . . . . . . . . . Flight 798 | . . . . . . 153 . 645 Fastest Speed 29 | 50 95 110 95 95 179 32 220 29 Average Speed 132 | 93 99 110 122 138 208 132 220 80 Slowest Speed 340 | 160 110 110 125 220 220 340 220 340 Overloaded Moves . | . . . . . . . . . Propulsion Burnouts . | . . . . . . . . . Robots Hopped 11 | . . . . . . . . 11 Cave-ins Triggered . | . . . . . . . . . Exploration Rate (%) 55 | 3 12 90 90 94 89 27 75 22 Regions Visited 8 Branch Regions 2 Pre-discovered Areas 2 | . . . 2 . . . . . Known Exits Taken 1 | . . . . 1 . . . . Unknown Exits Taken 4 | 1 1 1 1 . . . . . Scrap Searched 18 | . . 1 17 . . . . . Spaces Dug 13 | . . . 3 . . 8 . 2 Terrain Destroyed 90 | . . . 8 7 25 48 . 2 Melee 4 | . . . . . . 4 . . Projectile 45 | . . . 8 7 . 28 . 2 AOE 41 | . . . . . 25 16 . . Terrain Rammed . | . . . . . . . . . Walls Destroyed . | . . . . . . . . . Machines Disabled . | . . . . . . . . . Actions | -11 -10 -10 -10 -8 -8 -7 -7 -7 --------- Run | Yrd Mat Min Sub Mat Gar Fac Was Fac Total 20877 | 66 69 451 3228 9825 1709 3589 89 1851 Wait 7458 | . . 17 987 3948 795 1293 . 418 Move 11552 | 49 63 410 2072 5133 699 1937 74 1115 Hop 11 | . . . . . . . . 11 Pick Up 349 | 8 2 8 28 210 7 56 2 28 Fast Attach 95 | 7 . . 3 27 3 38 2 15 Attach 60 | . . . 6 15 7 21 . 11 Detach 27 | . . . 1 4 2 14 . 6 Swap 105 | . 1 . 12 30 19 22 1 20 Drop 351 | . 3 2 31 234 5 53 3 20 Fire 624 | 2 . 14 88 158 117 139 7 99 Melee 21 | . . . . . . 11 . 10 Ram . | . . . . . . . . . Kick . | . . . . . . . . . Crush . | . . . . . . . . . Escape Stasis 34 | . . . . . 16 . . 18 Rewire 25 | . . . . . 25 . . . Trap 165 | . . . . 66 14 5 . 80 Miscellaneous . | . . . . . . . . . Route ------- -11/Scrapyard -10/Materials -10/Mines (discovered 3 exits: [*Mat x2] / *Sub) -10/Subcaves (discovered 3 exits: *Mat x2 / [*Rec]) -8/Materials (discovered 3 exits: *Fac x2 / Gar) -8/Garrison (discovered 4 exits: *Fac x3 / *Mat) -7/Factory -7/Waste -7/Factory (discovered 5 exits: [*Fac] / Sto x2 / Low x2) History --------- Turn | Location | Event 4 | -11/Scrapyard | Discovered new exit (range 16) 72 | -11/Scrapyard | Entered Materials 79 | -10/Materials | Discovered new exit (range 15) 140 | -10/Materials | Entered Mines 262 | -10/Mines | Met a Derelict shopkeep closing up shop 318 | -10/Mines | Build established: Mutant 380 | -10/Mines | Discovered new exit (range 15) 559 | -10/Mines | Discovered new exit (range 10) 607 | -10/Mines | Learned Materials garrison access intel 657 | -10/Mines | Discovered new exit (range 3) 659 | -10/Mines | Entered Subcaves 666 | -10/Subcaves | Learned location of Zion (-6) 878 | -10/Subcaves | Shifting Twisted Machinery released Sub. Power Source 878 | -10/Subcaves | Shifting Twisted Machinery released Scrap Shield 1134 | -10/Subcaves | Lost 3 parts (1p1u1w) 1170 | -10/Subcaves | Core integrity fell below 50% 1217 | -10/Subcaves | Visited triangular shrine 1224 | -10/Subcaves | Found Prototype Device 1224 | -10/Subcaves | Identified V3-11A's Pendant 1229 | -10/Subcaves | Befriended Subdweller 1349 | -10/Subcaves | Befriended Subdweller 1408 | -10/Subcaves | Discovered new exit (range 14) 1621 | -10/Subcaves | Ambushed by Subdwellers from Twisted Machinery 1624 | -10/Subcaves | Befriended Subdweller 1624 | -10/Subcaves | Befriended Subdweller 1636 | -10/Subcaves | Met a Zionite searching for "candidates" 1749 | -10/Subcaves | Disturbed a concealed Subdweller 1754 | -10/Subcaves | Befriended Subdweller 1982 | -10/Subcaves | Disturbed a concealed Subdweller 3218 | -10/Subcaves | Build established: Derelict-Mutant 3814 | -10/Subcaves | Discovered new exit (range 15) 3872 | -10/Subcaves | Visited 4L-MR0's lab 3885 | -10/Subcaves | Found Cargo Legs 3973 | -10/Subcaves | Learned Materials emergency access door positions 4087 | -10/Subcaves | Befriended Subdweller 4087 | -10/Subcaves | Befriended Subdweller 4176 | -10/Subcaves | Shifting Twisted Machinery released Battle Cannon 4177 | -10/Subcaves | Shifting Twisted Machinery released Scrap Shield 4319 | -10/Subcaves | Discovered new exit (range 16) 4469 | -10/Subcaves | Entered Materials 4469 | -8/Materials | Accompanied by 3 allies 4469 | -8/Materials | Evolved 4 slots: Propulsion x1, Utility x3 4471 | -8/Materials | Loaded intel: 1 garrison access location 5622 | -8/Materials | Build established: Subdweller-Mutant 5926 | -8/Materials | Build established: Derelict-Mutant 8132 | -8/Materials | Lost 4 parts (1p1n2u) 8422 | -8/Materials | Build established: Scavenger-Mutant 8919 | -8/Materials | Discovered new exit (range 3) 11946 | -8/Materials | Discovered new exit (range 12) 14855 | -8/Materials | Repaired Core Shielding 14897 | -8/Materials | Identified exit to Garrison 15269 | -8/Materials | First assault squad dispatched 15806 | -8/Materials | Build established: Hauler-Mutant 16461 | -8/Materials | Entered Garrison 16526 | -8/Garrison | Triggered checkpoint 16644 | -8/Garrison | Triggered checkpoint 16716 | -8/Garrison | Discovered new exit (range 6) 16727 | -8/Garrison | Identified exit to Materials 16882 | -8/Garrison | Triggered checkpoint 16885 | -8/Garrison | Triggered checkpoint 16895 | -8/Garrison | Triggered checkpoint 16925 | -8/Garrison | Lost 3 allies 16931 | -8/Garrison | Core integrity fell below 50% 16963 | -8/Garrison | Destroyed 14 combat bots 17076 | -8/Garrison | Discovered new exit (range 10) 17094 | -8/Garrison | Identified exit to Factory 17158 | -8/Garrison | Triggered checkpoint 17484 | -8/Garrison | Discovered exit to Factory (range 11) 17557 | -8/Garrison | Triggered checkpoint 17675 | -8/Garrison | Installed Relay Interface Framework 17719 | -8/Garrison | Garrison Relay disabled 18023 | -8/Garrison | Expanded RIF knowledge: Command Fork 18068 | -8/Garrison | Discovered exit to Factory (range 5) 18126 | -8/Garrison | Triggered checkpoint 19085 | -8/Garrison | Entered Factory 19085 | -7/Factory | Evolved 2 slots: Utility x2 19402 | -7/Factory | Identified exit to Garrison 20210 | -7/Factory | Repaired Mak. System Restoration Module 20287 | -7/Factory | Repaired Hvy. Armor Plating 20367 | -7/Factory | Build established: Hauler-Skirmisher 20826 | -7/Factory | Cargo convoy interrupted 20896 | -7/Factory | Build established: Scavenger-Scout 21045 | -7/Factory | Found Prototype Launcher 21045 | -7/Factory | Identified Mni. Smartbomb Launcher 21067 | -7/Factory | Found Mni. Smartbomb Launcher 21161 | -7/Factory | Attached Cargo Legs, gained temporary slots: Utility x2 21739 | -7/Factory | Build established: Scavenger-Skirmisher 21885 | -7/Factory | First assault squad dispatched 22129 | -7/Factory | Destroyed 8 combat bots 22787 | -7/Factory | Build established: Hauler-Skirmisher 22802 | -7/Factory | Repaired Core Shielding 23215 | -7/Factory | Lost 3 parts (3u) 23462 | -7/Factory | Build established: Hauler-Mutant 23537 | -7/Factory | Sucked down chute 23537 | -7/Factory | Entered Waste 23552 | -7/Waste | EMP discharged 23552 | -7/Waste | System corruption reached 10% 23587 | -7/Waste | Spotted C-40 Crusher 23624 | -7/Waste | Spotted C-40 Crusher 23636 | -7/Waste | Spotted C-40 Crusher 23638 | -7/Waste | Spotted C-40 Crusher 23638 | -7/Waste | Spotted C-40 Crusher 23652 | -7/Waste | EMP discharged 23660 | -7/Waste | Spotted C-40 Crusher 23692 | -7/Waste | Discovered new exit (range 12) 23716 | -7/Waste | Identified exit to Factory 23718 | -7/Waste | Entered Factory 23793 | -7/Factory | Core integrity fell below 50% 23996 | -7/Factory | Discovered new exit (range 9) 24368 | -7/Factory | Build established: Scavenger-Mutant 25030 | -7/Factory | Build established: Scavenger-Skirmisher 25223 | -7/Factory | Identified exit to Storage 25223 | -7/Factory | Identified exit to Lower Caves 25346 | -7/Factory | Core integrity fell below 20% 25463 | -7/Factory | Garrison activated, responded to threat 25494 | -7/Factory | Destroyed by G-47 Trooper with Particle Gun Last Messages --------------- 25447_ Mak. Sword destroyed. 25449_ Jacked L-41 Fighter... >>parse_system Reading system data... 25451_ Jacked L-41 Fighter... 25451_ Command string: die 25451_ No effect. 25457_ Acquired Unknown Energy Gun. 25457_ Identified Lightning Gun. 25460_ System corrupted: Component data lost. 25463_ L-41 Fighter calls for garrison reinforcements. 25463_ ALERT: Activating Garrison Access F001. 25473_ Microactuators fried. 25473_ Imp. Melee Analysis Suite fried. 25473_ L-41 Fighter destroyed. 25475_ Acquired 31 matter. 25486_ VTOL Module destroyed. 25489_ System corrupted: Component data lost. 25492_ Lightning Gun destroyed. Map ----- +----------------------------------------------------+ | ????????????????????????????????##+##### #???????? | | ??????????????????????????????????????## #???????? | | ??????????????????????????????????????# #???????? | | ??????????????????????????????????????#T #???????? | | ??????????????????????????????????????## #???????? | | ??????????????????????????????????????## ##??????? | | ????????????????????????????????####### !#??????? | | ????????????????????????????????# #??????? | | ????????????????????????????????# #### #??????? | | ??????????????###########???????# #??#####??????? | | ??????????????# #???????# #?????????????? | | ??????????????# ######### #?????????????? | | ??????????????# # #?????????????? | | ??????????????# """""" %+ #?????????????? | | ??????????????# """""" # ^ #?????????????? | | ??????????????# """""" # #?????????????? | | ??????????????# """""" # ^ #?????????????? | | ??????????????# # """ #?????????????? | | ??????????????########### """ #?????????????? | | ???????????????????###### """ #?????????????? | | ???????############# #?????????????? | | ?????? +?????????????? | | ?????? ###Y##### #?????????????? | | ?????? ## #?####?????????????? | | ?????? ## #??????????????????? | | ?????? ## @ #??????????????????? | | ?????? ## #??????????????????? | | ?????? ##* """"#??????????????????? | | ???????""" """"""""" ##%=""""#??????????????????? | | ??????????? ## """"#??????????????????? | | ??????????? " " ## """"#??????????????????? | | ??????????? "G" ##g """"#??????????????????? | | ??????????? """ ## """"#??????????????????? | | ??????????? ## """"???????????????????? | | ???????????? ???? ?+ ???????????????????? | | ??????????????????####?# ???????????????????? | | ???????????????????????#######???????????????????? | | ?????????????????????????????????????????????????? | | ?????????????????????????????????????????????????? | | ?????????????????????????????????????????????????? | | ?????????????????????????????????????????????????? | | | | | | | | | | | | | | | | | | | +----------------------------------------------------+ Best States ------------- Heat Dissipation 61 Energy Generation 18 Energy Capacity 300 Matter Stores 300 Matter Capacity 300 Sight Range 16 Robot Scan Range 15 Terrain Scan Density 10 Jamming Range 12 Armor Coverage 800 Resistance: KI 10 Core Shielding 20 Utility Shielding 66 Evasion (%) 64 Targeting Accuracy 5 Core Analysis 6 Armor Integrity Analysis 30 Recoil Reduction 3 Offensive Hacking 10 Defensive Hacking 10 Relay Coupler Types 1 Relay Coupler Value 31 Authchip Count 2 Trap Extractor Capacity 4 Item Schematics ----------------- Cargo Storage Unit | -8/Materials | Scanalyzed Humpback | -8/Materials | Scanalyzed Mni. Smartbomb Launcher | -7/Factory | Scanalyzed Robot Schematics ------------------ None Fabricated ------------ Nothing Alien Tech Used ----------------- None Achievements -------------- None Challenges ------------ None Game ------ Seed DeliverySensorAirjet Manual? 0 Play Time 03:46:32 Cumulative 689.4 hours Start 2024.04.05 @ 13:00:50 End 2024.04.07 @ 09:24:39 Sessions 5 Manual Loads 0 Difficulty Rogue Special Mode None Game No. 279 Rogue 251 Adventurer 3 Explorer 25 Win Type - Total 16 Types 10/3/1/1/0/1/0/0/0 Lore% 91 Gallery% 96 Achievement% 85 Wizard Run 0 Options --------- Layout 2 ASCII 0 Keyboard 0 Movement Numpad Keybinds 0 Fullscreen 2 Font 24/Smallcaps Map View 50x44 Zoom Use 0% Tactical HUD 1 Map Filters NONE Filters NONE Steam 1 RUN: 69ea75dc-0aca-4c82-86f5-2c967878df7b